Cogmind - Beta 14 @@@ ROGUE MODE // 2024.08.17 @ 13:41:45 Player: Gabe+Kate4EVR Result: Destroyed self with Grenade Launcher Performance ------------- Evolutions (0) 0 Regions Visited (4) 800 Robots Destroyed (5) 25 Value Destroyed (66) 66 Prototype IDs (23) 460 Alien Tech Used (0) 0 Bonus (294) 294 TOTAL SCORE: 1645 Bonus ------- Aligned with FarCom 300 Friendly Fire -6 Cogmind --------- Core Integrity 0/250 Matter 259/300 Energy 84/100 System Corruption 7% Temperature Cool (0) Movement Core (400) Ox7 Location -9/Mines Parts ------- > --- POWER (1) -------- (None) > --- PROPULSION (2) --- (None) > --- UTILITY (2) ------ Large Storage Unit Modified TNC > --- WEAPON (2) ------- Light Assault Rifle Grenade Launcher > --- INVENTORY (15) --- Flight Unit Large Matter Pod (150) Experimental Sensor Array Shield Generator Mining Laser Peak State ------------ > --- POWER ------------ Ion Engine > --- PROPULSION ------- Aluminum Leg Aluminum Leg > --- UTILITY ---------- Small Storage Unit PSU Rigger > --- WEAPON ----------- Light Assault Rifle Light Assault Rifle > --- INVENTORY -------- Light Ion Engine Wheel Wheel Flight Unit Light Assault Rifle Grenade Launcher Grenade Launcher Mining Laser [Rating: 14] Favorites ----------- Power Ion Engine Engine Ion Engine Propulsion Aluminum Leg Leg Aluminum Leg Wheel Wheel Flight Unit Flight Unit Utility Small Storage Unit Device Terrain Scanner Storage Small Storage Unit Processor Modified TNC Weapon Light Assault Rifle Ballistic Gun Light Assault Rifle Launcher Grenade Launcher Build | -11 -10 -10 -10 -9 ------- Run | Yrd Mat Min Exi Min Slots Evolved . | . . . . . Power . | . . . . . Propulsion . | . . . . . Utility . | . . . . . Weapon . | . . . . . Parts Attached 25 | 7 3 . 6 9 Power 5 | 2 . . . 3 Engine 5 | 2 . . . 3 Core . | . . . . . Reactor . | . . . . . Propulsion 8 | 2 . . 3 3 Treads . | . . . . . Leg 5 | 2 . . . 3 Wheel 2 | . . . 2 . Hover . | . . . . . Flight 1 | . . . 1 . Utility 5 | 1 1 . 3 . Device 2 | . 1 . 1 . Storage 2 | 1 . . 1 . Processor 1 | . . . 1 . Hackware . | . . . . . Protection . | . . . . . Artifact . | . . . . . Weapon 7 | 2 2 . . 3 Energy Gun . | . . . . . Energy Cannon . | . . . . . Ballistic Gun 5 | 2 2 . . 1 Ballistic Cannon . | . . . . . Launcher 2 | . . . . 2 Special Weapon . | . . . . . Impact Weapon . | . . . . . Slashing Weapon . | . . . . . Piercing Weapon . | . . . . . Special Melee Weapon . | . . . . . Unidentified Prototypes 1 | . . . 1 . Parts Lost 10 | . . . . 10 Power 2 | . . . . 2 Propulsion 5 | . . . . 5 Utility . | . . . . . Weapon 3 | . . . . 3 Highest Loss Streak 5 | . . . . 5 To Critical Strikes . | . . . . . Average Slot Usage (%) 98 | . 98 100 99 97 Engine 13 | . 14 14 14 13 Leg 21 | . 28 28 23 9 Wheel 6 | . . . 4 17 Device 5 | . 12 14 2 . Storage 14 | . 14 14 14 14 Processor 8 | . . . 10 14 Ballistic Gun 27 | . 28 28 28 27 Peak Build Rating 14 | 6 7 7 14 14 Average Rating 9 | 4 6 7 10 12 On Entrance 6 | . 6 7 7 12 Naked Turns . | . . . . . Heaviest Build 27 | 12 13 13 27 27 Greatest Support 23 | 20 20 20 20 23 Greatest Overweight (x) 2 | 1 . . 2 2 Average Overweight (x) . | . . . . 1 Largest Inventory Capacity 15 | 8 8 8 15 15 Average Capacity 10 | 7 8 8 9 15 Most Carried 10 | 2 8 8 9 10 Average Carried 7 | 1 5 8 8 8 Final Capacity 15 | 8 8 8 15 15 Final Carried 9 | 2 8 8 9 5 Class Distribution -------------------- 100% | Mutant Dominant Class ---------------- Mutant | -10/Materials Mutant | -10/Mines Mutant | -10/Exiles Mutant | -9/Mines Resources | -11 -10 -10 -10 -9 ----------- Run | Yrd Mat Min Exi Min Matter Collected 492 | 227 91 . 30 144 Remotely . | . . . . . Salvage Created 237 | . 151 . . 86 Parts 6 | . 6 . . . Haulers Intercepted 1 | . 1 . . . Recyclers Shooed . | . . . . . Parts Field Recycled . | . . . . . Retrieved Matter . | . . . . . Parts Self-Destructed . | . . . . . Prevented . | . . . . . Kills | -11 -10 -10 -10 -9 ------- Run | Yrd Mat Min Exi Min Combat Hostiles Destroyed 14 | . 4 . . 10 Guns 9 | . 4 . . 5 AOE 5 | . . . . 5 Classes Destroyed 4 | . 3 . . 1 Hauler 1 | . 1 . . . Swarmer 3 | . 3 . . . Grunt 1 | . 1 . . . Assembled 10 | . . . . 10 Best Kill Streak 5 | . 3 . . 5 Combat Bots Only 5 | . 3 . . 5 Max Kills in Single Turn 2 | . 1 . . 2 Gunslinging . | . . . . . Exploded 2 | . . . . 2 Melee . | . . . . . Uniques/NPCs Destroyed . | . . . . . Combat | -11 -10 -10 -10 -9 -------- Run | Yrd Mat Min Exi Min Hostile Shots Fired 81 | . 16 . . 65 Missed 21 | . 6 . . 15 Damage Taken 1041 | . 89 . . 952 Core 254 | . 27 . . 227 Absorbed by Shields . | . . . . . Core Remaining (%) 100 | 100 . . . . Volleys Fired 47 | . 14 . . 33 Largest 2 | . 2 . . 2 Hottest 50 | . 40 . . 50 Shots Fired 88 | . 28 . . 60 Gun 85 | . 28 . . 57 Cannon . | . . . . . Launcher 3 | . . . . 3 Special . | . . . . . Kinetic 85 | . 28 . . 57 Thermal . | . . . . . Explosive 3 | . . . . 3 Electromagnetic . | . . . . . Robot Hit Streak 5 | . 5 . . 5 Robot Miss Streak 4 | . 2 . . 4 Penetration Max . | . . . . . Secondary Targets 1 | . 1 . . . Max Gunslinging Chain 1 | . 1 . . . Shots Hit Robots 50 | . 16 . . 34 Core Hits 30 | . 7 . . 23 Critical Kills . | . . . . . Critical Parts Destroyed . | . . . . . Critical Strikes . | . . . . . Melee Attacks . | . . . . . Impact . | . . . . . Slashing . | . . . . . Piercing . | . . . . . Sneak Attacks . | . . . . . Combat Hostiles . | . . . . . Follow-up Attacks . | . . . . . Damage Inflicted 615 | . 135 . . 480 Guns 395 | . 135 . . 260 Cannons . | . . . . . Explosions 220 | . . . . 220 Melee . | . . . . . Ramming . | . . . . . Kinetic 395 | . 135 . . 260 Thermal . | . . . . . Explosive 220 | . . . . 220 Electromagnetic . | . . . . . Impact . | . . . . . Slashing . | . . . . . Piercing . | . . . . . Highest Corruption 7 | . . . . 7 Average Corruption 7 | . . . . 7 Corruption Purged . | . . . . . Corruption Blocked . | . . . . . Effects 2 | . . . . 2 Matter Fused 1 | . . . . 1 Data Loss (major) 1 | . . . . 1 Overload Shots . | . . . . . Overflow Damage 5 | . . . . 5 Projectiles . | . . . . . Explosions 5 | . . . . 5 Melee . | . . . . . Knockbacks . | . . . . . Impact . | . . . . . Kinetic . | . . . . . Secondary . | . . . . . Self-Inflicted Damage 85 | . . . . 85 Shots 3 | . . . . 3 Rammed . | . . . . . Targets Rammed . | . . . . . Kicked . | . . . . . Crushed . | . . . . . Highest Temperature 60 | . 12 . . 60 Average Temperature 21 | . 7 . . 23 Received Heat Transfer 590 | . 30 . . 560 Siege Activations . | . . . . . Robots Corrupted . | . . . . . Combat Hostiles . | . . . . . Parts Fried . | . . . . . Impact Corruptions . | . . . . . Robots Melted . | . . . . . Combat Hostiles . | . . . . . Parts Melted . | . . . . . Heat Transferred . | . . . . . Parts Sabotaged . | . . . . . Parts Stolen . | . . . . . Parts Stripped . | . . . . . Power Chain Reactions . | . . . . . Alert | -11 -10 -10 -10 -9 ------- Run | Yrd Mat Min Exi Min Peak Influence 127 | . 127 . . 15 Initial . | . . . . . Average 22 | . 53 . . . Maximum Alert Level . | . . . . . Low Security (%) 100 | 100 100 100 . 100 Level 1 . | . . . . . Level 2 . | . . . . . Level 3 . | . . . . . Level 4 . | . . . . . Level 5 . | . . . . . High Security . | . . . . . Max Security . | . . . . . Squads Dispatched 2 | . 2 . . . Investigation 2 | . 2 . . . Extermination . | . . . . . Reinforcement . | . . . . . Assault . | . . . . . Garrison . | . . . . . Intercept . | . . . . . Searches Triggered . | . . . . . Construction Impeded . | . . . . . Haulers Reinforced . | . . . . . Active Scanning Responses . | . . . . . Cargo Convoy Interrupts . | . . . . . Stealth | -11 -10 -10 -10 -9 --------- Run | Yrd Mat Min Exi Min Distress Signals . | . . . . . Communications Jammed . | . . . . . Distress Signals . | . . . . . Times Spotted 18 | . 4 . . 14 Peak Tracking Total 5 | . 3 . . 5 Tactical Retreats 1 | . . . . 1 Traps | -11 -10 -10 -10 -9 ------- Run | Yrd Mat Min Exi Min Traps Triggered 2 | . 2 . . . Indirectly . | . . . . . Trap Hack Attempts . | . . . . . Triggered . | . . . . . Disarmed . | . . . . . Reprogrammed . | . . . . . Reused . | . . . . . Traps Extracted . | . . . . . Installed . | . . . . . Triggered . | . . . . . Machines | -11 -10 -10 -10 -9 ---------- Run | Yrd Mat Min Exi Min Machines Disabled . | . . . . . Max in Single Turn . | . . . . . Machines Repaired . | . . . . . Machines Dismantled . | . . . . . Machines Sabotaged . | . . . . . Overloaded Fab Kills . | . . . . . Hacking | -11 -10 -10 -10 -9 --------- Run | Yrd Mat Min Exi Min Machines Accessed 7 | . 3 . 4 . Terminals 3 | . 3 . . . Fabricators . | . . . . . Repair Stations . | . . . . . Recycling Units . | . . . . . Scanalyzers . | . . . . . Garrison Access . | . . . . . Total Hacks 36 | . 9 . 27 . Successful 28 | . 1 . 27 . Failed 8 | . 8 . . . Catastrophic 1 | . 1 . . . Database Lockouts . | . . . . . Manual 7 | . 6 . 1 . Terminals 9 | . 9 . . . Fabricators . | . . . . . Repair Stations . | . . . . . Recycling Units . | . . . . . Scanalyzers . | . . . . . Garrison Access . | . . . . . Terminal Hacks 27 | . . . 27 . Record 26 | . . . 26 . Derelict Proto ID Bank 1 | . . . 1 . Fabricator Hacks . | . . . . . Repair Station Hacks . | . . . . . Recycling Unit Hacks . | . . . . . Scanalyzer . | . . . . . Garrison Access Hacks . | . . . . . Unauthorized Hacks 1 | . 1 . . . Terminals 1 | . 1 . . . Botnet 1 | . 1 . . . Fabricators . | . . . . . Repair Stations . | . . . . . Recycling Units . | . . . . . Scanalyzers . | . . . . . Garrison Access . | . . . . . Data Cores Recovered . | . . . . . Used . | . . . . . Hacking Detections 3 | . 3 . . . Full Trace Events . | . . . . . Feedback Events . | . . . . . Feedback Blocked . | . . . . . Robot Schematics Acquired . | . . . . . Robots Built . | . . . . . Authchips . | . . . . . Time . | . . . . . Total Robot Build Rating . | . . . . . Part Schematics Acquired . | . . . . . Parts Built . | . . . . . Authchips . | . . . . . Time . | . . . . . Total Part Build Rating . | . . . . . Parts Repaired . | . . . . . Time . | . . . . . Parts Recycled . | . . . . . Recycled Matter . | . . . . . Retrieved Matter . | . . . . . Retrieved Components . | . . . . . Parts Scanalyzed . | . . . . . Part Schematics Acquired . | . . . . . Parts Damaged . | . . . . . Bothacking | -11 -10 -10 -10 -9 ------------ Run | Yrd Mat Min Exi Min Used RIF Installer . | . . . . . Robots Hacked . | . . . . . Non-combat . | . . . . . Combat . | . . . . . Robot Hacks Applied . | . . . . . Relay Couplers Released . | . . . . . Fabnet Peak Effective % . | . . . . . Robots Rewired . | . . . . . Allies Hacked . | . . . . . Hacks Repelled . | . . . . . Allies | -11 -10 -10 -10 -9 -------- Run | Yrd Mat Min Exi Min Total Allies . | . . . . . Largest Group . | . . . . . Highest-Rated Group . | . . . . . Highest-Rated Ally . | . . . . . Total Orders . | . . . . . Ally Attacks . | . . . . . Total Damage . | . . . . . Kills . | . . . . . Allies Corrupted . | . . . . . Allies Melted . | . . . . . Intel | -11 -10 -10 -10 -9 ------- Run | Yrd Mat Min Exi Min Robot Analysis Total . | . . . . . Derelict Logs Recovered 3 | . . 1 . 2 Drone Launches . | . . . . . Drone Recoveries . | . . . . . Exploration | -11 -10 -10 -10 -9 ------------- Run | Yrd Mat Min Exi Min Turns Passed 2128 | 67 488 141 943 489 Spaces Moved 1431 | 41 243 117 800 230 Core 5 | 5 . . . . Treads . | . . . . . Legs 1029 | 36 243 117 575 58 Wheels 397 | . . . 225 172 Hover . | . . . . . Flight . | . . . . . Fastest Speed 50 | 50 120 120 95 95 Average Speed 118 | 137 120 120 116 120 Slowest Speed 260 | 190 120 120 190 260 Overloaded Moves . | . . . . . Propulsion Burnouts . | . . . . . Robots Hopped . | . . . . . Cave-ins Triggered . | . . . . . Exploration Rate (%) 45 | 5 31 36 92 63 Regions Visited 4 Branch Regions 3 Pre-discovered Areas . | . . . . . Known Exits Taken . | . . . . . Unknown Exits Taken 4 | 1 1 1 1 . Scrap Searched 1 | . . . . 1 Spaces Dug . | . . . . . Terrain Destroyed 21 | . . . . 21 Melee . | . . . . . Projectile . | . . . . . AOE 21 | . . . . 21 Terrain Rammed . | . . . . . Walls Destroyed . | . . . . . Machines Disabled . | . . . . . Actions | -11 -10 -10 -10 -9 --------- Run | Yrd Mat Min Exi Min Total 1789 | 48 419 117 811 394 Wait 265 | . 144 1 . 120 Move 1427 | 40 242 116 799 230 Hop . | . . . . . Pick Up 14 | 1 10 . 1 2 Fast Attach 12 | 6 1 . 3 2 Attach 6 | . . . . 6 Detach 1 | . . . 1 . Swap 7 | 1 2 . 3 1 Drop 10 | . 6 . 4 . Fire 47 | . 14 . . 33 Melee . | . . . . . Ram . | . . . . . Kick . | . . . . . Crush . | . . . . . Escape Stasis . | . . . . . Rewire . | . . . . . Trap . | . . . . . Miscellaneous . | . . . . . Route ------- -11/Scrapyard -10/Materials (discovered 2 exits: [*Mat] / [*Min]) -10/Mines -10/Exiles -9/Mines History --------- Turn | Location | Event 26 | -11/Scrapyard | Discovered new exit (range 16) 68 | -11/Scrapyard | Entered Materials 324 | -10/Materials | Build established: Mutant 400 | -10/Materials | Discovered new exit (range 13) 405 | -10/Materials | Discovered new exit (range 15) 556 | -10/Materials | Entered Mines 613 | -10/Mines | Learned Materials stockpile data 692 | -10/Mines | Deemed a non-threat by the Exiles lab entrance 692 | -10/Mines | Discovered new exit (range 5) 697 | -10/Mines | Entered Exiles 727 | -10/Exiles | Met 8R-AWN 747 | -10/Exiles | Met EX-HEX 784 | -10/Exiles | Met EX-BIN 801 | -10/Exiles | Aligned with FarCom system 802 | -10/Exiles | Given EX-Vault access code 881 | -10/Exiles | Opened EX-Vault 896 | -10/Exiles | Found Prototype Device 896 | -10/Exiles | Identified PSU Rigger 910 | -10/Exiles | Found Modified TNC 938 | -10/Exiles | Warned to stay clear of 0b10 Research branches 977 | -10/Exiles | Met EX-DEC 1171 | -10/Exiles | Visited The Gauntlet 1626 | -10/Exiles | Discovered new exit (range 14) 1640 | -10/Exiles | Left Exiles lab with Modified TNC 1640 | -10/Exiles | Entered Mines 1859 | -9/Mines | Learned location of 1 exit from Materials 1892 | -9/Mines | Assembled infested the area 1897 | -9/Mines | Assisted by a Guerilla fighting off Assembled 1897 | -9/Mines | Found a damaged Exp. Sensor Array with a note attached 1899 | -9/Mines | Found Prototype Device 1965 | -9/Mines | Learned Materials terminal intel 1996 | -9/Mines | Lost 3 parts (2n1w) 2021 | -9/Mines | Core integrity fell below 50% 2118 | -9/Mines | Core integrity fell below 20% 2129 | -9/Mines | Destroyed self with Grenade Launcher Last Messages --------------- 02037_ Knocked back. 02038_ Acquired Imp. Aluminum Leg. 02051_ as-66166 destroyed. 02052_ Acquired 11 matter. 02053_ Acquired 19 matter. 02057_ Acquired Shield Generator. 02067_ System corrupted: Matter fused (-5). 02101_ System corrupted: Substantial component data lost. 02105_ Aluminum Leg destroyed. 02114_ Lgt. Assault Rifle destroyed. 02121_ as-77759 destroyed. 02121_ as-13387 destroyed. 02121_ Ion Engine destroyed. 02121_ Destroyed Ion Engine. 02123_ as-17764 destroyed. 02123_ as-91464 destroyed. 02124_ The unstable cave ceiling collapses. 02125_ Grenade Launcher destroyed. 02127_ Imp. Aluminum Leg destroyed. 02129_ as-04921 destroyed. Map ----- +----------------------------------------------------+ | | | | | | | | | | | | | | | | | | | | | | | | | | | | | | | | | | | | | | | | | | | ??????????????????????????????????????????????? | | ?????????????######???####????????????????????? | | ????????????## ### ##???????????????????? | | ????????????# #???????????????????? | | ????????????# @ #???????????????????? | | ????????????# % #???????????????????? | | ???????????# ##???????????????????? | | ????????# # ####################?# | | ???????# % % ### | | ?????? = # ################# | | ?????? ### ##?# #???????????????##### | | ?????? ???## ##??# #???????????????????? | | ?????????????# #???# #???????????????????? | | ????????????# #???? ???????????????????? | | ????????????# #????? ???????????????????? | | ????????????#% #?????? #???????????????????? | | ????????????#= ??????? #???????????????????? | | ???????????? ??????? #???????????????????? | | ??????????????? ???????? ????????????????????? | | ???????????????????????? ????????????????????? | | ???????????????????????? ????????????????????? | | ???????????????????????? ????????????????????? | | ????????????????????????% ????????????????????? | | ???????????????????????? ????????????????????? | | ??????????????????????????????????????????????? | | ??????????????????????????????????????????????? | | ??????????????????????????????????????????????? | | ??????????????????????????????????????????????? | | ??????????????????????????????????????????????? | +----------------------------------------------------+ Best States ------------- Heat Dissipation 25 Energy Generation 10 Energy Capacity 250 Matter Stores 300 Matter Capacity 300 Sight Range 16 Terrain Scan Range 14 Terrain Scan Density 10 Evasion (%) 55 Item Schematics ----------------- None Robot Schematics ------------------ None Fabricated ------------ Nothing Alien Tech Used ----------------- None Achievements -------------- None Challenges ------------ None Game ------ Seed ThermalCoilTrident Manual? 0 Play Time 00:11:24 Cumulative 189.0 hours Start 2024.08.17 @ 13:30:42 End 2024.08.17 @ 13:41:45 Sessions 1 Manual Loads 0 Difficulty Rogue Special Mode None Game No. 369 Rogue 369 Adventurer 0 Explorer 0 Win Type - Total 0 Types 0/0/0/0/0/0/0/0/0 Lore% 33 Gallery% 63 Achievement% 48 Wizard Run 0 Options --------- Layout 0 ASCII 0 Keyboard 1 Movement Numpad Keybinds 0 Fullscreen 2 Font 24/Terminus Map View 76x50 Zoom Use 0% Tactical HUD 1 Map Filters NONE Filters NONE Steam 1 RUN: 2a8bdc7d-a55d-473d-8d11-1e2b4079ec75